[Event "*** SCC Grand Prix: Titled Tuesday Blitz"]
[Site "Chess.com"]
[Date "2020.07.14"]
[Round "1"]
[White "yuliagok"]
[Black "ShahMatKanal"]
[Result "0-1"]
[WhiteElo "2101"]
[BlackElo "2487"]
[TimeControl "180+1"]
[EndTime "10:05:52 PDT"]
[Termination "ShahMatKanal won by resignation"]

1. d4 {[%clk 0:02:55.5]} 1... d5 {[%clk 0:02:59.7]} 2. c4 {[%clk 0:02:53.5]}
2... c6 {[%clk 0:02:59.6]} 3. cxd5 {[%clk 0:02:51.9]} 3... cxd5 {[%clk
0:02:59.4]} 4. Nc3 {[%clk 0:02:51]} 4... Nf6 {[%clk 0:02:59.6]} 5. Nf3 {[%clk
0:02:49.9]} 5... Nc6 {[%clk 0:02:57.8]} 6. Bf4 {[%clk 0:02:48.8]} 6... a6 {[%clk
0:02:57.4]} 7. e3 {[%clk 0:02:47.5]} 7... g6 {[%clk 0:02:56.2]} 8. Bd3 {[%clk
0:02:43.3]} 8... Bg7 {[%clk 0:02:55.8]} 9. O-O {[%clk 0:02:42.2]} 9... O-O
{[%clk 0:02:55.3]} 10. Rc1 {[%clk 0:02:39.9]} 10... Bd7 {[%clk 0:02:49.9]} 11.
Ne5 {[%clk 0:02:38.8]} 11... Rc8 {[%clk 0:02:48]} 12. Nxc6 {[%clk 0:02:31.6]}
12... Bxc6 {[%clk 0:02:46.2]} 13. b4 {[%clk 0:02:29.9]} 13... Nh5 {[%clk
0:02:41.6]} 14. Bg3 {[%clk 0:02:26.8]} 14... Nxg3 {[%clk 0:02:41.4]} 15. hxg3
{[%clk 0:02:25.9]} 15... e5 {[%clk 0:02:37.4]} 16. b5 {[%clk 0:02:16.6]} 16...
axb5 {[%clk 0:02:34.9]} 17. Bxb5 {[%clk 0:02:15.3]} 17... exd4 {[%clk
0:02:28.5]} 18. Bxc6 {[%clk 0:02:12.6]} 18... dxc3 {[%clk 0:02:24.3]} 19. Bxd5
{[%clk 0:02:11.9]} 19... b5 {[%clk 0:02:19.4]} 20. Qb3 {[%clk 0:02:10.3]} 20...
Qa5 {[%clk 0:02:14.3]} 21. Rfd1 {[%clk 0:02:04]} 21... b4 {[%clk 0:02:08.2]} 22.
f4 {[%clk 0:01:54.4]} 22... Qc5 {[%clk 0:02:04.7]} 23. Rd3 {[%clk 0:01:49.7]}
23... Rcd8 {[%clk 0:01:56.5]} 24. Kh2 {[%clk 0:01:44.2]} 24... Kh8 {[%clk
0:01:52.1]} 25. e4 {[%clk 0:01:35.8]} 25... g5 {[%clk 0:01:34.3]} 26. e5 {[%clk
0:01:29.6]} 26... Rd7 {[%clk 0:01:17.1]} 27. e6 {[%clk 0:01:19.5]} 27... fxe6
{[%clk 0:01:13.8]} 28. Bc4 {[%clk 0:01:13]} 28... Rxd3 {[%clk 0:01:10]} 29. Bxd3
{[%clk 0:01:12]} 29... gxf4 {[%clk 0:01:10.9]} 30. g4 {[%clk 0:01:05.5]} 30...
f3 {[%clk 0:01:07.9]} 31. Qxe6 {[%clk 0:01:01.7]} 31... Qf2 {[%clk 0:00:59.5]}
32. Rc2 {[%clk 0:00:52.3]} 32... Qh4+ {[%clk 0:00:57.4]} 0-1

[Event "*** SCC Grand Prix: Titled Tuesday Blitz"]
[Site "Chess.com"]
[Date "2020.07.14"]
[Round "1"]
[White "sergeikim"]
[Black "Maghalashvili"]
[Result "0-1"]
[WhiteElo "2396"]
[BlackElo "2765"]
[TimeControl "180+1"]
[EndTime "10:05:57 PDT"]
[Termination "Maghalashvili won by resignation"]

1. d4 {[%clk 0:03:00.9]} 1... Nf6 {[%clk 0:02:58.9]} 2. c4 {[%clk 0:03:00.7]}
2... e6 {[%clk 0:02:59.3]} 3. Nc3 {[%clk 0:03:00.6]} 3... Bb4 {[%clk 0:02:59.2]}
4. Qc2 {[%clk 0:03:00.5]} 4... O-O {[%clk 0:02:58.6]} 5. a3 {[%clk 0:03:00.6]}
5... Bxc3+ {[%clk 0:02:58]} 6. Qxc3 {[%clk 0:03:01.5]} 6... d5 {[%clk
0:02:58.1]} 7. Nf3 {[%clk 0:03:01.3]} 7... dxc4 {[%clk 0:02:57.3]} 8. Qxc4
{[%clk 0:03:00.9]} 8... b6 {[%clk 0:02:58.2]} 9. g3 {[%clk 0:03:00.7]} 9... Ba6
{[%clk 0:02:54]} 10. Qc2 {[%clk 0:03:00.2]} 10... Nbd7 {[%clk 0:02:52.7]} 11.
Qc6 {[%clk 0:02:59.7]} 11... Rb8 {[%clk 0:02:46.8]} 12. Bg2 {[%clk 0:02:59.2]}
12... Bb7 {[%clk 0:02:45.2]} 13. Qa4 {[%clk 0:02:58.8]} 13... Ra8 {[%clk
0:02:30.7]} 14. O-O {[%clk 0:02:56.8]} 14... c5 {[%clk 0:02:26.9]} 15. Rd1
{[%clk 0:02:56]} 15... Qe7 {[%clk 0:02:26.9]} 16. Bg5 {[%clk 0:02:35.1]} 16...
Rfd8 {[%clk 0:02:17.4]} 17. Rac1 {[%clk 0:02:21.6]} 17... h6 {[%clk 0:01:43.4]}
18. Bf4 {[%clk 0:02:11.8]} 18... Nd5 {[%clk 0:01:35.6]} 19. Ne5 {[%clk
0:01:55.8]} 19... Nxf4 {[%clk 0:01:35.3]} 20. Bxb7 {[%clk 0:01:44.5]} 20...
Nxe2+ {[%clk 0:01:32.9]} 21. Kf1 {[%clk 0:01:43.4]} 21... Nxe5 {[%clk 0:01:25]}
22. Bxa8 {[%clk 0:01:33.2]} 22... Nxc1 {[%clk 0:01:23.9]} 23. dxe5 {[%clk
0:01:31.6]} 23... Rxa8 {[%clk 0:01:18.8]} 24. Rxc1 {[%clk 0:01:31]} 24... Rd8
{[%clk 0:01:18.6]} 25. Qe4 {[%clk 0:01:30.4]} 25... Qd7 {[%clk 0:01:13.8]} 26.
b4 {[%clk 0:01:27.7]} 26... Qd5 {[%clk 0:01:09.9]} 27. Qxd5 {[%clk 0:01:23.8]}
27... Rxd5 {[%clk 0:01:10.8]} 28. f4 {[%clk 0:01:23.1]} 28... g5 {[%clk
0:01:08.6]} 29. bxc5 {[%clk 0:01:14.4]} 29... bxc5 {[%clk 0:01:06.9]} 30. Ke2
{[%clk 0:01:13.4]} 30... gxf4 {[%clk 0:01:07.1]} 31. gxf4 {[%clk 0:01:12.7]}
31... Kg7 {[%clk 0:01:02.2]} 32. Ke3 {[%clk 0:01:12]} 32... Kg6 {[%clk
0:01:01.4]} 33. Rg1+ {[%clk 0:01:09.1]} 33... Kf5 {[%clk 0:00:59.1]} 34. Rg7
{[%clk 0:01:08.5]} 34... Rd7 {[%clk 0:00:58.9]} 35. Rh7 {[%clk 0:00:56]} 35...
c4 {[%clk 0:00:57.3]} 36. Rh8 {[%clk 0:00:53.9]} 36... Rd3+ {[%clk 0:00:55.8]}
37. Ke2 {[%clk 0:00:52.4]} 37... Kxf4 {[%clk 0:00:56.2]} 38. Rxh6 {[%clk
0:00:51.8]} 38... Kxe5 {[%clk 0:00:55.2]} 0-1

[Event "*** SCC Grand Prix: Titled Tuesday Blitz"]
[Site "Chess.com"]
[Date "2020.07.14"]
[Round "1"]
[White "DariaVoit"]
[Black "tamarozi99"]
[Result "1-0"]
[WhiteElo "2468"]
[BlackElo "2001"]
[TimeControl "180+1"]
[EndTime "10:05:57 PDT"]
[Termination "DariaVoit won by resignation"]

1. d4 {[%clk 0:03:00.9]} 1... Nf6 {[%clk 0:02:58.6]} 2. Nf3 {[%clk 0:03:01.3]}
2... g6 {[%clk 0:02:57.3]} 3. c4 {[%clk 0:03:01.7]} 3... Bg7 {[%clk 0:02:56.5]}
4. Nc3 {[%clk 0:03:00.1]} 4... O-O {[%clk 0:02:55.5]} 5. Bg5 {[%clk 0:03:00.6]}
5... d6 {[%clk 0:02:55.6]} 6. e3 {[%clk 0:03:00.9]} 6... Nbd7 {[%clk 0:02:55.1]}
7. h3 {[%clk 0:03:01.2]} 7... b6 {[%clk 0:02:54.8]} 8. Bd3 {[%clk 0:02:59.5]}
8... Bb7 {[%clk 0:02:54.7]} 9. O-O {[%clk 0:02:55.2]} 9... h6 {[%clk 0:02:48.6]}
10. Bh4 {[%clk 0:02:54.9]} 10... a5 {[%clk 0:02:47.5]} 11. d5 {[%clk 0:02:52.9]}
11... Nc5 {[%clk 0:02:42.1]} 12. Bc2 {[%clk 0:02:53.2]} 12... e5 {[%clk
0:02:03.2]} 13. dxe6 {[%clk 0:02:46.2]} 13... Nxe6 {[%clk 0:01:55.5]} 14. Nd4
{[%clk 0:02:46.4]} 14... Nc5 {[%clk 0:01:47.7]} 15. f3 {[%clk 0:02:43.1]} 15...
Qd7 {[%clk 0:01:36.7]} 16. Qd2 {[%clk 0:02:42.8]} 16... a4 {[%clk 0:01:27.6]}
17. Rad1 {[%clk 0:02:42.1]} 17... Rfe8 {[%clk 0:01:24.8]} 18. e4 {[%clk
0:02:41.4]} 18... Ba6 {[%clk 0:01:15.6]} 19. b3 {[%clk 0:02:38.7]} 19... axb3
{[%clk 0:01:13.8]} 20. axb3 {[%clk 0:02:39.6]} 20... Ne6 {[%clk 0:01:03.4]} 21.
Nde2 {[%clk 0:02:26.7]} 21... g5 {[%clk 0:00:59.3]} 22. Bf2 {[%clk 0:02:24.6]}
22... Nh5 {[%clk 0:00:57.5]} 23. Nd5 {[%clk 0:02:21.8]} 23... Bb7 {[%clk
0:00:51.9]} 24. Ne3 {[%clk 0:02:16.3]} 24... Nef4 {[%clk 0:00:48]} 25. Nxf4
{[%clk 0:02:11.1]} 25... Nxf4 {[%clk 0:00:46.9]} 26. Nf5 {[%clk 0:02:11.6]}
26... Bf8 {[%clk 0:00:46.5]} 27. Kh2 {[%clk 0:02:07.7]} 27... Bc8 {[%clk
0:00:33.9]} 28. g3 {[%clk 0:01:45.8]} 28... Ng6 {[%clk 0:00:31.3]} 29. Bd4
{[%clk 0:01:41.1]} 29... Qd8 {[%clk 0:00:28.5]} 30. Qc3 {[%clk 0:01:36.1]} 30...
Bxf5 {[%clk 0:00:24.6]} 31. exf5 {[%clk 0:01:34.1]} 31... Ne5 {[%clk 0:00:24.5]}
32. f4 {[%clk 0:01:29.4]} 32... gxf4 {[%clk 0:00:18.6]} 33. gxf4 {[%clk
0:01:30.3]} 33... Nc6 {[%clk 0:00:18.5]} 34. Rg1+ {[%clk 0:01:24]} 34... Kh7
{[%clk 0:00:17.6]} 35. f6+ {[%clk 0:01:22.5]} 35... Kh8 {[%clk 0:00:15.6]} 36.
Qd3 {[%clk 0:01:23]} 1-0

[Event "*** SCC Grand Prix: Titled Tuesday Blitz"]
[Site "Chess.com"]
[Date "2020.07.14"]
[Round "1"]
[White "mishanick"]
[Black "Orest_Vovk"]
[Result "1-0"]
[WhiteElo "2845"]
[BlackElo "2420"]
[TimeControl "180+1"]
[EndTime "10:05:58 PDT"]
[Termination "mishanick won by checkmate"]

1. d4 {[%clk 0:03:00.6]} 1... h6 {[%clk 0:02:59.7]} 2. c4 {[%clk 0:03:01.1]}
2... g5 {[%clk 0:02:59.6]} 3. Nc3 {[%clk 0:03:01.6]} 3... Bg7 {[%clk 0:02:59.8]}
4. e4 {[%clk 0:03:02.2]} 4... c5 {[%clk 0:02:59.1]} 5. d5 {[%clk 0:03:02.1]}
5... Bxc3+ {[%clk 0:02:57.7]} 6. bxc3 {[%clk 0:03:01.8]} 6... d6 {[%clk
0:02:58.3]} 7. f4 {[%clk 0:02:52.7]} 7... Qa5 {[%clk 0:02:55.2]} 8. Qc2 {[%clk
0:02:46.2]} 8... Nf6 {[%clk 0:02:32.5]} 9. Bd3 {[%clk 0:02:45.6]} 9... Rg8
{[%clk 0:02:18]} 10. Nf3 {[%clk 0:02:40.7]} 10... Bg4 {[%clk 0:02:13.2]} 11. e5
{[%clk 0:01:58]} 11... Bxf3 {[%clk 0:02:01.4]} 12. gxf3 {[%clk 0:01:41.5]} 12...
Nh5 {[%clk 0:01:53.1]} 13. fxg5 {[%clk 0:01:38.7]} 13... hxg5 {[%clk 0:01:46]}
14. e6 {[%clk 0:01:33.1]} 14... Nf4 {[%clk 0:01:32.1]} 15. exf7+ {[%clk
0:00:59]} 15... Kxf7 {[%clk 0:01:30.7]} 16. Bf5 {[%clk 0:00:59.9]} 16... Kf6
{[%clk 0:00:45.5]} 17. Bxf4 {[%clk 0:00:54.3]} 17... gxf4 {[%clk 0:00:45]} 18.
Be6 {[%clk 0:00:54.5]} 18... Rg5 {[%clk 0:00:38.3]} 19. h4 {[%clk 0:00:54]}
19... Re5+ {[%clk 0:00:36.7]} 20. Kf2 {[%clk 0:00:54.5]} 20... Nc6 {[%clk
0:00:13.2]} 21. Rhg1 {[%clk 0:00:51.6]} 21... Rxe6 {[%clk 0:00:12.2]} 22. Qg6+
{[%clk 0:00:50.5]} 22... Ke5 {[%clk 0:00:12.1]} 23. Qxe6# {[%clk 0:00:51.4]} 1-0

[Event "*** SCC Grand Prix: Titled Tuesday Blitz"]
[Site "Chess.com"]
[Date "2020.07.14"]
[Round "1"]
[White "ARMQUEEN"]
[Black "kirillshevchenko"]
[Result "0-1"]
[WhiteElo "2435"]
[BlackElo "2934"]
[TimeControl "180+1"]
[EndTime "10:05:59 PDT"]
[Termination "kirillshevchenko won by resignation"]

1. e4 {[%clk 0:02:51.7]} 1... c5 {[%clk 0:02:59.7]} 2. Nc3 {[%clk 0:02:49.7]}
2... d6 {[%clk 0:02:59.8]} 3. d4 {[%clk 0:02:48.5]} 3... cxd4 {[%clk 0:02:59.5]}
4. Qxd4 {[%clk 0:02:47.9]} 4... Nc6 {[%clk 0:03:00.2]} 5. Qd2 {[%clk 0:02:47]}
5... g6 {[%clk 0:03:00.7]} 6. b3 {[%clk 0:02:46.4]} 6... Bh6 {[%clk 0:03:00.8]}
7. f4 {[%clk 0:02:46]} 7... Nf6 {[%clk 0:03:00.4]} 8. Bb2 {[%clk 0:02:45]} 8...
O-O {[%clk 0:03:00.2]} 9. Nge2 {[%clk 0:02:39.1]} 9... e5 {[%clk 0:02:41.8]} 10.
O-O-O {[%clk 0:02:35.9]} 10... Nd4 {[%clk 0:02:23.7]} 11. Kb1 {[%clk 0:02:30.5]}
11... Bg4 {[%clk 0:02:22.1]} 12. g3 {[%clk 0:02:19.8]} 12... d5 {[%clk
0:02:00.5]} 13. Nxd5 {[%clk 0:02:11.4]} 13... Nxd5 {[%clk 0:01:56.2]} 14. exd5
{[%clk 0:01:44]} 14... Qxd5 {[%clk 0:01:55.8]} 15. Bxd4 {[%clk 0:01:38.3]} 15...
exd4 {[%clk 0:01:26.6]} 16. Rg1 {[%clk 0:01:33]} 16... Rfe8 {[%clk 0:01:26.6]}
17. h3 {[%clk 0:01:15.5]} 17... Bf3 {[%clk 0:01:24.4]} 18. Rc1 {[%clk
0:01:11.1]} 18... Bg7 {[%clk 0:01:21.2]} 19. f5 {[%clk 0:00:49.3]} 19... d3
{[%clk 0:01:10.5]} 20. cxd3 {[%clk 0:00:43.8]} 20... Bxe2 {[%clk 0:01:10.5]} 21.
Bxe2 {[%clk 0:00:41.8]} 21... Qe5 {[%clk 0:01:10.8]} 22. Bf3 {[%clk 0:00:33.4]}
22... Rac8 {[%clk 0:01:00.4]} 23. Rxc8 {[%clk 0:00:17.2]} 23... Rxc8 {[%clk
0:01:01.3]} 24. d4 {[%clk 0:00:16.9]} 24... Qxf5+ {[%clk 0:01:01.5]} 25. Kb2
{[%clk 0:00:17]} 25... Qxf3 {[%clk 0:01:01.7]} 26. Re1 {[%clk 0:00:17.3]} 26...
Rd8 {[%clk 0:01:00.9]} 0-1

[Event "*** SCC Grand Prix: Titled Tuesday Blitz"]
[Site "Chess.com"]
[Date "2020.07.14"]
[Round "1"]
[White "picturesquecheck"]
[Black "Legendinunknown"]
[Result "0-1"]
[WhiteElo "2216"]
[BlackElo "2547"]
[TimeControl "180+1"]
[EndTime "10:06:01 PDT"]
[Termination "Legendinunknown won by checkmate"]

1. e4 {[%clk 0:03:00.9]} 1... c5 {[%clk 0:02:57.9]} 2. Nf3 {[%clk 0:03:00.6]}
2... d6 {[%clk 0:02:57.2]} 3. d4 {[%clk 0:03:00.8]} 3... cxd4 {[%clk 0:02:56.4]}
4. Nxd4 {[%clk 0:03:01.7]} 4... Nf6 {[%clk 0:02:57]} 5. Nc3 {[%clk 0:03:02.1]}
5... Nc6 {[%clk 0:02:57.5]} 6. Bg5 {[%clk 0:03:01.6]} 6... e6 {[%clk 0:02:57.2]}
7. Qd2 {[%clk 0:03:01.8]} 7... a6 {[%clk 0:02:57.2]} 8. O-O-O {[%clk 0:03:01.5]}
8... Bd7 {[%clk 0:02:57.6]} 9. f4 {[%clk 0:02:59.5]} 9... Qc7 {[%clk 0:02:51.7]}
10. Be2 {[%clk 0:02:51.6]} 10... Be7 {[%clk 0:02:48.5]} 11. Kb1 {[%clk
0:02:48.8]} 11... O-O-O {[%clk 0:02:47.8]} 12. Rhe1 {[%clk 0:02:34.1]} 12... Kb8
{[%clk 0:02:46.8]} 13. Bf3 {[%clk 0:02:28.6]} 13... h6 {[%clk 0:02:39.8]} 14.
Bxf6 {[%clk 0:02:22.8]} 14... gxf6 {[%clk 0:02:38.5]} 15. Nxc6+ {[%clk
0:02:12.9]} 15... Bxc6 {[%clk 0:02:37.4]} 16. f5 {[%clk 0:02:12.8]} 16... Qa5
{[%clk 0:02:36.3]} 17. Qf2 {[%clk 0:01:48.3]} 17... Qe5 {[%clk 0:02:31.4]} 18.
h3 {[%clk 0:01:27.7]} 18... Rc8 {[%clk 0:02:29.7]} 19. Qd4 {[%clk 0:01:22.1]}
19... h5 {[%clk 0:02:04.7]} 20. Ne2 {[%clk 0:01:10.3]} 20... Rc7 {[%clk
0:01:52.5]} 21. Qxe5 {[%clk 0:01:09.1]} 21... dxe5 {[%clk 0:01:51.7]} 22. Ng3
{[%clk 0:01:08.3]} 22... h4 {[%clk 0:01:47.5]} 23. Nf1 {[%clk 0:01:06.5]} 23...
exf5 {[%clk 0:01:46.6]} 24. exf5 {[%clk 0:01:06.7]} 24... Bxf3 {[%clk
0:01:47.2]} 25. gxf3 {[%clk 0:01:07.3]} 25... Bc5 {[%clk 0:01:47.5]} 26. Nh2
{[%clk 0:01:01.8]} 26... Rh5 {[%clk 0:01:45.1]} 27. Re4 {[%clk 0:00:50.8]} 27...
Rxf5 {[%clk 0:01:44.2]} 28. Rxh4 {[%clk 0:00:50.3]} 28... Be3 {[%clk 0:01:36.6]}
29. Re4 {[%clk 0:00:45.5]} 29... Bf4 {[%clk 0:01:35.2]} 30. Ng4 {[%clk 0:00:43]}
30... Rh5 {[%clk 0:01:35.7]} 31. Nxf6 {[%clk 0:00:31.4]} 31... Rxh3 {[%clk
0:01:34.9]} 32. Nd5 {[%clk 0:00:31.5]} 32... Rd7 {[%clk 0:01:34.6]} 33. c4
{[%clk 0:00:19.9]} 33... Rxf3 {[%clk 0:01:33.9]} 34. Rh1 {[%clk 0:00:19.3]}
34... Ka7 {[%clk 0:01:30.3]} 35. b3 {[%clk 0:00:18.9]} 35... Rf2 {[%clk
0:01:25.9]} 36. Nxf4 {[%clk 0:00:15.9]} 36... exf4 {[%clk 0:01:25.6]} 37. Rh4
{[%clk 0:00:15.1]} 37... Rd1# {[%clk 0:01:24.4]} 0-1

[Event "*** SCC Grand Prix: Titled Tuesday Blitz"]
[Site "Chess.com"]
[Date "2020.07.14"]
[Round "1"]
[White "MFguimaraes"]
[Black "Volodar_Murzin"]
[Result "0-1"]
[WhiteElo "2372"]
[BlackElo "2706"]
[TimeControl "180+1"]
[EndTime "10:06:03 PDT"]
[Termination "Volodar_Murzin won by resignation"]

1. e4 {[%clk 0:03:00.9]} 1... c6 {[%clk 0:02:59.8]} 2. d4 {[%clk 0:03:00.6]}
2... d5 {[%clk 0:03:00.7]} 3. Nd2 {[%clk 0:03:00.4]} 3... dxe4 {[%clk
0:02:59.7]} 4. Nxe4 {[%clk 0:03:01.3]} 4... Bf5 {[%clk 0:02:59.9]} 5. Ng3 {[%clk
0:03:01]} 5... Bg6 {[%clk 0:03:00.1]} 6. Nf3 {[%clk 0:03:01.9]} 6... Nd7 {[%clk
0:02:59.1]} 7. Bd3 {[%clk 0:03:02.1]} 7... Bxd3 {[%clk 0:02:58.4]} 8. Qxd3
{[%clk 0:03:03]} 8... Ngf6 {[%clk 0:02:59.3]} 9. Bf4 {[%clk 0:03:02.7]} 9... e6
{[%clk 0:03:00.2]} 10. O-O {[%clk 0:03:02.1]} 10... Be7 {[%clk 0:03:00.2]} 11.
Rfe1 {[%clk 0:03:02]} 11... O-O {[%clk 0:03:00.5]} 12. Rad1 {[%clk 0:03:01.6]}
12... Qa5 {[%clk 0:02:58]} 13. a3 {[%clk 0:02:59.5]} 13... Rfe8 {[%clk
0:02:57.5]} 14. Bd2 {[%clk 0:02:53.9]} 14... Qb5 {[%clk 0:02:51.5]} 15. c4
{[%clk 0:02:48.8]} 15... Qxb2 {[%clk 0:02:48.2]} 16. Rb1 {[%clk 0:02:16]} 16...
Qxa3 {[%clk 0:02:41.6]} 17. Rb3 {[%clk 0:01:52.3]} 17... Qa6 {[%clk 0:02:33.7]}
18. Reb1 {[%clk 0:01:45.4]} 18... b6 {[%clk 0:02:28.4]} 19. Qc2 {[%clk
0:01:41.4]} 19... Qb7 {[%clk 0:02:23.2]} 20. Bf4 {[%clk 0:01:37.7]} 20... a5
{[%clk 0:02:07.3]} 21. Ne5 {[%clk 0:01:27]} 21... a4 {[%clk 0:02:06.9]} 22. R3b2
{[%clk 0:01:21.6]} 22... a3 {[%clk 0:02:03.3]} 23. Ra2 {[%clk 0:01:21.6]} 23...
c5 {[%clk 0:01:51.3]} 24. dxc5 {[%clk 0:01:16]} 24... Bxc5 {[%clk 0:01:47.9]}
25. Nd3 {[%clk 0:01:13.9]} 25... Bf8 {[%clk 0:01:46.1]} 26. c5 {[%clk
0:01:10.4]} 26... Rec8 {[%clk 0:01:42.5]} 27. Qb3 {[%clk 0:01:00.2]} 27... Nxc5
{[%clk 0:01:32.3]} 28. Nxc5 {[%clk 0:00:55.4]} 28... Bxc5 {[%clk 0:01:33.2]} 29.
Be5 {[%clk 0:00:55]} 29... Ng4 {[%clk 0:01:25.5]} 30. Bxg7 {[%clk 0:00:46.9]}
30... Kxg7 {[%clk 0:01:15.8]} 31. Nh5+ {[%clk 0:00:46.5]} 31... Kh8 {[%clk
0:01:15.2]} 32. Rf1 {[%clk 0:00:40.8]} 32... Rg8 {[%clk 0:01:12.2]} 33. Qc3+
{[%clk 0:00:38.7]} 33... e5 {[%clk 0:01:12.1]} 34. h3 {[%clk 0:00:32.3]} 34...
Bd4 {[%clk 0:01:09.4]} 35. Qg3 {[%clk 0:00:29.9]} 35... Nxf2 {[%clk 0:01:04.3]}
0-1

[Event "*** SCC Grand Prix: Titled Tuesday Blitz"]
[Site "Chess.com"]
[Date "2020.07.14"]
[Round "1"]
[White "andy_rekt"]
[Black "mitrabhaa"]
[Result "0-1"]
[WhiteElo "2296"]
[BlackElo "2602"]
[TimeControl "180+1"]
[EndTime "10:06:03 PDT"]
[Termination "mitrabhaa won by resignation"]

1. d4 {[%clk 0:03:00.9]} 1... Nf6 {[%clk 0:02:54.6]} 2. c4 {[%clk 0:03:00.5]}
2... e6 {[%clk 0:02:52.4]} 3. Nc3 {[%clk 0:02:59.4]} 3... Bb4 {[%clk 0:02:51.5]}
4. e3 {[%clk 0:02:59.6]} 4... O-O {[%clk 0:02:51.7]} 5. Ne2 {[%clk 0:02:59.4]}
5... d5 {[%clk 0:02:51.7]} 6. a3 {[%clk 0:02:58.3]} 6... Be7 {[%clk 0:02:51.3]}
7. cxd5 {[%clk 0:02:57.9]} 7... exd5 {[%clk 0:02:51.5]} 8. Nf4 {[%clk
0:02:58.6]} 8... c6 {[%clk 0:02:51.6]} 9. Bd3 {[%clk 0:02:52.4]} 9... Bd6 {[%clk
0:02:50]} 10. O-O {[%clk 0:02:49.6]} 10... a5 {[%clk 0:02:46.4]} 11. f3 {[%clk
0:02:38]} 11... Na6 {[%clk 0:02:45.2]} 12. Bc2 {[%clk 0:02:32]} 12... Re8 {[%clk
0:02:42.9]} 13. e4 {[%clk 0:02:29.4]} 13... dxe4 {[%clk 0:02:37.9]} 14. fxe4
{[%clk 0:02:30.3]} 14... Bg4 {[%clk 0:02:37.5]} 15. Qd3 {[%clk 0:02:15.1]} 15...
Qb6 {[%clk 0:02:27.1]} 16. Be3 {[%clk 0:01:48.6]} 16... Rad8 {[%clk 0:02:01.9]}
17. h3 {[%clk 0:01:39.4]} 17... Bxf4 {[%clk 0:01:57.9]} 18. Rxf4 {[%clk
0:01:35.7]} 18... Bh5 {[%clk 0:01:57.6]} 19. Kh1 {[%clk 0:01:02]} 19... Bg6
{[%clk 0:01:54.7]} 20. Raf1 {[%clk 0:00:58.3]} 20... Nd5 {[%clk 0:01:39.9]} 21.
Nxd5 {[%clk 0:00:39.2]} 21... cxd5 {[%clk 0:01:39]} 22. Qe2 {[%clk 0:00:22.7]}
22... Qxb2 {[%clk 0:01:34]} 23. Rb1 {[%clk 0:00:16.3]} 23... Qxa3 {[%clk
0:01:33.3]} 24. e5 {[%clk 0:00:15.3]} 24... Bxc2 {[%clk 0:01:29.4]} 25. Bc1
{[%clk 0:00:12.7]} 25... Qd3 {[%clk 0:01:28.5]} 26. Qxd3 {[%clk 0:00:09.2]}
26... Bxd3 {[%clk 0:01:29.4]} 27. Rxb7 {[%clk 0:00:09.7]} 27... Bg6 {[%clk
0:01:26]} 28. Ra7 {[%clk 0:00:08.4]} 28... Nb4 {[%clk 0:01:22.7]} 29. Rxa5
{[%clk 0:00:08.6]} 29... Nd3 {[%clk 0:01:21.4]} 30. Rf1 {[%clk 0:00:08.8]} 30...
Ra8 {[%clk 0:01:20.2]} 31. Rxd5 {[%clk 0:00:07.8]} 31... Ra1 {[%clk 0:01:19.7]}
0-1

[Event "*** SCC Grand Prix: Titled Tuesday Blitz"]
[Site "Chess.com"]
[Date "2020.07.14"]
[Round "1"]
[White "ftorodent"]
[Black "HanSchut"]
[Result "1-0"]
[WhiteElo "2654"]
[BlackElo "2337"]
[TimeControl "180+1"]
[EndTime "10:06:05 PDT"]
[Termination "ftorodent won by resignation"]

1. d4 {[%clk 0:02:59.8]} 1... Nf6 {[%clk 0:02:59.3]} 2. c4 {[%clk 0:02:59]} 2...
g6 {[%clk 0:02:58.8]} 3. Nc3 {[%clk 0:02:58.1]} 3... d5 {[%clk 0:02:58.8]} 4.
Nf3 {[%clk 0:02:55.3]} 4... Bg7 {[%clk 0:02:59]} 5. cxd5 {[%clk 0:02:55.4]} 5...
Nxd5 {[%clk 0:02:59]} 6. Bg5 {[%clk 0:02:55.5]} 6... c5 {[%clk 0:02:37]} 7. Rc1
{[%clk 0:02:54.7]} 7... Nxc3 {[%clk 0:02:28]} 8. bxc3 {[%clk 0:02:54.2]} 8...
cxd4 {[%clk 0:02:15.1]} 9. cxd4 {[%clk 0:02:53.6]} 9... O-O {[%clk 0:02:14.1]}
10. e3 {[%clk 0:02:51.6]} 10... Bg4 {[%clk 0:02:07.8]} 11. Qd2 {[%clk
0:02:50.1]} 11... Bxf3 {[%clk 0:01:33.6]} 12. gxf3 {[%clk 0:02:50]} 12... Nc6
{[%clk 0:01:33.9]} 13. f4 {[%clk 0:02:50]} 13... Qd6 {[%clk 0:01:02.9]} 14. Bg2
{[%clk 0:02:48.4]} 14... e6 {[%clk 0:01:01.2]} 15. O-O {[%clk 0:02:46.3]} 15...
Rfc8 {[%clk 0:01:00.6]} 16. Rc5 {[%clk 0:02:31.1]} 16... Rc7 {[%clk 0:00:51.5]}
17. Rfc1 {[%clk 0:02:27.1]} 17... Rac8 {[%clk 0:00:51.6]} 18. Qc3 {[%clk
0:02:05.4]} 18... h6 {[%clk 0:00:48.2]} 19. Bh4 {[%clk 0:02:04.4]} 19... Kh7
{[%clk 0:00:25]} 20. f5 {[%clk 0:01:52.8]} 20... e5 {[%clk 0:00:23.3]} 21. d5
{[%clk 0:01:45.4]} 21... e4 {[%clk 0:00:20.4]} 22. f6 {[%clk 0:01:45.2]} 22...
g5 {[%clk 0:00:11.6]} 23. fxg7 {[%clk 0:01:44]} 23... gxh4 {[%clk 0:00:11.3]}
24. dxc6 {[%clk 0:01:39.7]} 24... bxc6 {[%clk 0:00:09.2]} 25. Bxe4+ {[%clk
0:01:38.1]} 25... Kg8 {[%clk 0:00:07.5]} 26. h3 {[%clk 0:01:21]} 26... Qe6
{[%clk 0:00:07.7]} 27. Bf5 {[%clk 0:01:20.2]} 27... Qe7 {[%clk 0:00:05.3]} 28.
Bxc8 {[%clk 0:01:20.1]} 28... Rxc8 {[%clk 0:00:03.9]} 29. Rxc6 {[%clk 0:01:20]}
29... Rxc6 {[%clk 0:00:03.2]} 30. Qxc6 {[%clk 0:01:19]} 30... Kxg7 {[%clk
0:00:04.1]} 1-0